fUSD/lending_fUSD_20241221
["ID","MTS","AMOUNT","RATE_DAILY","PERIOD"]
[346183721,1734766264774,-286.95167039,0.00020273,2]
[346183722,1734766264784,-500.0,0.00020273,2]
[346183723,1734766264796,-500.0,0.00020273,2]
[346183724,1734766264806,-500.0,0.00020273,2]
[346183725,1734766264815,-500.0,0.00020273,2]
[346183726,1734766264825,-500.0,0.00020273,2]
[346183727,1734766264837,-500.0,0.00020273,2]
[346183728,1734766264846,-598.62,0.00020273,2]
[346183729,1734766264856,-604.84,0.00020273,2]
[346183730,1734766264866,-500.0,0.00020273,2]
[346183731,1734766264876,-500.0,0.00020273,2]
[346183732,1734766264886,-500.0,0.00020273,2]
[346183733,1734766264898,-500.0,0.00020273,2]
[346183734,1734766264908,-500.0,0.00020273,2]
[346183735,1734766264918,-500.0,0.00020273,2]
[346183736,1734766264928,-500.0,0.00020273,2]
[346183737,1734766264940,-500.0,0.00020273,2]
[346183738,1734766264950,-500.0,0.00020273,2]
[346183739,1734766264959,-500.0,0.00020273,2]
[346183740,1734766264970,-500.0,0.00020273,2]
[346183741,1734766264980,-500.0,0.00020273,2]
[346183742,1734766264991,-544.98,0.00020273,2]
[346183743,1734766265000,-658.28,0.00020273,2]
[346183744,1734766265011,-500.0,0.00020273,2]
[346183745,1734766265022,-500.0,0.00020273,2]
[346183746,1734766265032,-500.0,0.00020273,2]
[346183747,1734766265041,-500.0,0.00020273,2]
[346183748,1734766265051,-538.36,0.00020273,2]
[346183749,1734766265061,-676.52,0.00020273,2]
[346183750,1734766265070,-151.21,0.00020282,2]
[346183751,1734766265080,-28486.09162951,0.000203,2]
[346183752,1734766265090,-271.0,0.0002035,2]
[346183753,1734766265099,-210.0,0.0002035,2]
[346183754,1734766265110,-150.0,0.00020441,4]
[346183755,1734766265120,-150.0,0.00020441,4]
[346183756,1734766265130,-500.0,0.00020543,2]
[346183757,1734766265140,-500.0,0.00020543,2]
[346183758,1734766265150,-500.0,0.00020543,2]
[346183759,1734766265160,-689.39,0.00020543,2]
[346183760,1734766265169,-538.01,0.00020543,2]
[346183761,1734766265179,-500.0,0.00020543,2]
[346183762,1734766265189,-1397.48,0.00020543,2]
[346183763,1734766265199,-963.78,0.00020543,2]
[346183764,1734766265210,-697.47,0.00020543,2]
[346183765,1734766265221,-792.07,0.00020543,2]
[346183766,1734766265232,-770.71,0.00020543,2]
[346183767,1734766265242,-1343.87,0.00020543,2]
[346183768,1734766265252,-537.37,0.00020543,2]
[346183769,1734766265262,-783.1,0.00020543,2]
[346183770,1734766265272,-508.67,0.00020543,2]
[346183771,1734766265282,-4069.09,0.00020543,2]
[346183772,1734766265292,-546.82,0.00020543,2]
[346183773,1734766265302,-500.0,0.00020543,2]
[346183774,1734766265313,-551.01,0.00020543,2]
[346183775,1734766265322,-557.35,0.00020543,2]
[346183776,1734766265332,-500.0,0.00020543,2]
[346183777,1734766265341,-669.27,0.00020543,2]
[346183778,1734766265351,-452.84918913,0.00020544,2]
[346183779,1734766265361,-500.0,0.00020544,2]
[346183780,1734766265371,-500.0,0.00020544,2]
[346183781,1734766265382,-500.0,0.00020544,2]
[346183782,1734766265391,-500.0,0.00020544,2]
[346183783,1734766265401,-500.0,0.00020544,2]
[346183784,1734766265410,-500.0,0.00020544,2]
[346183785,1734766265420,-500.0,0.00020544,2]
[346183786,1734766265431,-229.62569695,0.00020544,2]
[346183787,1734766265441,-500.0,0.00020544,2]
[346183788,1734766265451,-500.0,0.00020544,2]
[346183789,1734766265461,-500.0,0.00020544,2]
[346183790,1734766265473,-500.0,0.00020544,2]
[346183791,1734766265483,-500.0,0.00020544,2]
[346183792,1734766265493,-537.904182,0.00020544,2]
[346183793,1734766265504,-544.31,0.00020544,2]
[346183794,1734766265513,-500.0,0.00020544,2]
[346183795,1734766265524,-567.96,0.00020544,2]
[346183796,1734766265533,-500.0,0.00020544,2]
[346183797,1734766265543,-516.22,0.00020544,2]
[346183798,1734766265554,-800.025363,0.00020544,2]
[346183799,1734766265568,-500.0,0.00020544,2]
[346183800,1734766265579,-500.0,0.00020544,2]
[346183801,1734766265590,-500.0,0.00020544,2]
[346183802,1734766265600,-500.0,0.00020544,2]
[346183803,1734766265611,-500.0,0.00020544,2]
[346183804,1734766265621,-500.0,0.00020544,2]
[346183805,1734766265631,-500.0,0.00020544,2]
[346183806,1734766265642,-500.0,0.00020544,2]
[346183807,1734766265652,-500.0,0.00020544,2]
[346183808,1734766265662,-500.0,0.00020544,2]
[346183809,1734766265673,-500.0,0.00020544,2]
[346183810,1734766265683,-579.22600689,0.00020544,2]
[346183811,1734766265694,-500.0,0.00020544,2]
[346183812,1734766265704,-500.0,0.00020544,2]
[346183813,1734766265715,-500.0,0.00020544,2]
[346183814,1734766265725,-660.08,0.00020544,2]
[346183815,1734766265736,-500.0,0.00020544,2]
[346183816,1734766265746,-522.91,0.00020544,2]
[346183817,1734766265756,-500.0,0.00020544,2]
[346183818,1734766265768,-500.0,0.00020544,2]
[346183819,1734766265779,-500.0,0.00020544,2]
[346183820,1734766265789,-500.0,0.00020544,2]
[346183821,1734766265800,-632.96,0.00020544,2]
[346183822,1734766265811,-500.0,0.00020544,2]
[346183823,1734766265821,-883.23,0.00020544,2]
[346183824,1734766265833,-500.0,0.00020544,2]
[346183825,1734766265843,-500.0,0.00020544,2]
[346183826,1734766265856,-500.0,0.00020544,2]
[346183827,1734766265866,-584.02,0.00020544,2]
[346183828,1734766265877,-500.0,0.00020544,2]
[346183829,1734766265887,-500.0,0.00020544,2]
[346183830,1734766265898,-161.151945,0.00020544,2]
[346183831,1734766265908,-793.22,0.00020544,2]
[346183832,1734766265918,-500.0,0.00020544,2]
[346183833,1734766265929,-500.0,0.00020544,2]
[346183834,1734766265940,-500.0,0.00020544,2]
[346183835,1734766265952,-875.32,0.00020544,2]
[346183836,1734766265962,-558.23,0.00020544,2]
[346183837,1734766265972,-500.0,0.00020544,2]
[346183838,1734766265983,-1181.67,0.00020544,2]
[346183839,1734766265993,-500.0,0.00020544,2]
[346183840,1734766266003,-160.131679,0.00020544,2]
[346183841,1734766266015,-500.0,0.00020544,2]
[346183842,1734766266025,-500.0,0.00020544,2]
[346183843,1734766266036,-500.0,0.00020544,2]
[346183844,1734766266046,-709.0,0.00020544,2]
[346183845,1734766266056,-500.0,0.00020544,2]
[346183846,1734766266067,-500.0,0.00020544,2]
[346183847,1734766266077,-160.455202,0.00020544,2]
[346183848,1734766266087,-519.43,0.00020544,2]
[346183849,1734766266097,-500.0,0.00020544,2]
[346183850,1734766266107,-792.61,0.00020544,2]
[346183851,1734766266117,-659.48,0.00020544,2]
[346183852,1734766266127,-748.6,0.00020544,2]
[346183853,1734766266138,-500.0,0.00020544,2]
[346183854,1734766266149,-790.31,0.00020544,2]
[346183855,1734766266159,-683.95,0.00020544,2]
[346183856,1734766266170,-930.92,0.00020544,2]
[346183857,1734766266180,-501.21,0.00020544,2]
[346183858,1734766266191,-500.0,0.00020544,2]
[346183859,1734766266201,-704.07,0.00020544,2]
[346183860,1734766266211,-500.0,0.00020544,2]
[346183861,1734766266222,-500.0,0.00020544,2]
[346183862,1734766266232,-5899.9,0.00020544,2]
[346183863,1734766266242,-4159.09,0.00020544,2]
[346183864,1734766266252,-630.74,0.00020544,2]
[346183865,1734766266262,-1332.42,0.00020544,2]
[346183866,1734766266273,-500.0,0.00020544,2]
[346183867,1734766266283,-1550.03,0.00020544,2]
[346183868,1734766266294,-500.0,0.00020544,2]
[346183869,1734766266304,-500.0,0.00020544,2]
[346183870,1734766266314,-1728.02,0.00020544,2]
[346183871,1734766266325,-500.0,0.00020544,2]
[346183872,1734766266335,-2009.63,0.00020544,2]
[346183873,1734766266345,-500.0,0.00020544,2]
[346183874,1734766266355,-677.89,0.00020544,2]
[346183875,1734766266366,-3836.36,0.00020544,2]
[346183876,1734766266376,-500.0,0.00020544,2]
[346183877,1734766266387,-500.0,0.00020544,2]
[346183878,1734766266398,-1192.91,0.00020544,2]
[346183879,1734766266408,-500.0,0.00020544,2]
[346183880,1734766266418,-1376.74,0.00020544,2]
[346183881,1734766266429,-161.151945,0.00020544,2]
[346183882,1734766266439,-1937.19,0.00020544,2]
[346183883,1734766266450,-500.0,0.00020544,2]
[346183884,1734766266460,-696.37,0.00020544,2]
[346183885,1734766266473,-688.65,0.00020544,2]
[346183886,1734766266484,-826.51,0.00020544,2]
[346183887,1734766266494,-500.0,0.00020544,2]
[346183888,1734766266505,-720.34,0.00020544,2]
[346183889,1734766266515,-500.0,0.00020545,2]
[346183890,1734766266526,-500.0,0.00020545,2]
[346183891,1734766266536,-500.0,0.00020545,2]
[346183892,1734766266547,-500.0,0.00020545,2]
[346183893,1734766266558,-593.29744283,0.00020545,2]
[346183894,1734766266568,-500.0,0.00020545,2]
[346183895,1734766266578,-500.0,0.00020545,2]
[346183896,1734766266588,-500.0,0.00020545,2]
[346183897,1734766266598,-500.0,0.00020545,2]
[346183898,1734766266608,-500.0,0.00020545,2]
[346183899,1734766266619,-500.0,0.00020545,2]
[346183900,1734766266629,-500.0,0.00020545,2]
[346183901,1734766266639,-500.0,0.00020545,2]
[346183902,1734766266649,-500.0,0.00020545,2]
[346183903,1734766266660,-500.0,0.00020545,2]
[346183904,1734766266670,-500.0,0.00020545,2]
[346183905,1734766266680,-500.0,0.00020545,2]
[346183906,1734766266691,-500.0,0.00020545,2]
[346183907,1734766266701,-500.0,0.00020545,2]
[346183908,1734766266711,-500.0,0.00020545,2]
[346183909,1734766266722,-500.0,0.00020545,2]
[346183910,1734766266732,-500.0,0.00020545,2]
[346183911,1734766266743,-500.0,0.00020545,2]
[346183912,1734766266754,-500.0,0.00020545,2]
[346183913,1734766266764,-500.0,0.00020545,2]
[346183914,1734766266774,-500.0,0.00020545,2]
[346183915,1734766266785,-500.0,0.00020545,2]
[346183916,1734766266795,-500.0,0.00020545,2]
[346183917,1734766266806,-500.0,0.00020546,2]
[346183918,1734766266816,-1880.63,0.00020546,2]
[346183919,1734766266827,-599.47,0.00020546,2]
[346183920,1734766266838,-500.0,0.00020546,2]
[346183921,1734766266849,-571.94,0.00020546,2]
[346183922,1734766266859,-788.06,0.00020546,2]
[346183923,1734766266869,-1594.97,0.00020546,2]
[346183924,1734766266880,-691.97,0.00020546,2]
[346183925,1734766266890,-1250.98,0.00020546,2]
[346183926,1734766266900,-1386.53,0.00020546,2]
[346183927,1734766266911,-2843.99,0.00020546,2]
[346183928,1734766267175,-1543.5,0.00020546,2]
[346183929,1734766267186,-1528.73,0.00020546,2]
[346183930,1734766267197,-1688.3,0.00020546,2]
[346183931,1734766267207,-653.19,0.00020546,2]
[346183932,1734766267218,-512.91,0.00020546,2]
[346183933,1734766267228,-878.51,0.00020546,2]
[346183934,1734766267238,-8120.52,0.00020546,2]
[346183935,1734766267247,-642.16,0.00020546,2]
[346183936,1734766267257,-1141.23,0.00020546,2]
[346183937,1734766267266,-2045.28,0.00020546,2]
[346183938,1734766267277,-989.96,0.00020546,2]
[346183939,1734766267286,-500.0,0.00020546,2]
[346183940,1734766267296,-502.05227973,0.00020547,2]
[346183941,1734766267306,-500.0,0.00020547,2]
[346183942,1734766267315,-500.0,0.00020547,2]
[346183943,1734766267325,-500.0,0.00020547,2]
[346183944,1734766267335,-500.0,0.00020547,2]
[346183945,1734766267345,-500.0,0.00020547,2]
[346183946,1734766267355,-255.74501861,0.00020547,2]
[346183947,1734766267365,-500.0,0.00020547,2]
[346183948,1734766267374,-500.0,0.00020547,2]
[346183949,1734766267384,-563.80009621,0.00020547,2]
[346183950,1734766267394,-500.0,0.00020547,2]
[346183951,1734766267403,-500.0,0.00020547,2]
[346183952,1734766267413,-492.07094443,0.00020547,2]
[346183953,1734766267424,-500.0,0.00020547,2]
[346183954,1734766267433,-500.0,0.00020547,2]
[346183955,1734766267443,-500.0,0.00020547,2]
[346183956,1734766267452,-500.0,0.00020547,2]
[346183957,1734766267462,-500.0,0.00020547,2]
[346183958,1734766267472,-500.0,0.00020547,2]
[346183959,1734766267481,-505.58088945,0.00020547,2]
[346183960,1734766267491,-500.0,0.00020547,2]
[346183961,1734766267500,-500.0,0.00020547,2]
[346183962,1734766267510,-380.99,0.00020547,2]
[346183963,1734766267519,-500.0,0.00020547,2]
[346183964,1734766267528,-500.0,0.00020547,2]
[346183965,1734766267538,-500.0,0.00020547,2]
[346183966,1734766267549,-513.08,0.00020547,2]
[346183967,1734766267558,-500.0,0.00020547,2]
[346183968,1734766267568,-500.0,0.00020547,2]
[346183969,1734766267577,-500.0,0.00020547,2]
[346183970,1734766267587,-660.7,0.00020547,2]
[346183971,1734766267596,-600.64,0.00020547,2]
[346183972,1734766267606,-728.17,0.00020547,2]
[346183973,1734766267615,-634.75364911,0.00020547,2]
[346183974,1734766267626,-500.0,0.00020547,2]
[346183975,1734766267636,-500.0,0.00020547,2]
[346183976,1734766267645,-500.0,0.00020547,2]
[346183977,1734766267655,-500.0,0.00020547,2]
[346183978,1734766267665,-807.72,0.00020547,2]
[346183979,1734766267675,-500.0,0.00020547,2]
[346183980,1734766267686,-500.0,0.00020547,2]
[346183981,1734766267696,-684.27,0.00020547,2]
[346183982,1734766267705,-500.0,0.00020547,2]
[346183983,1734766267715,-500.0,0.00020547,2]
[346183984,1734766267725,-500.0,0.00020547,2]
[346183985,1734766267734,-684.28,0.00020547,2]
[346183986,1734766267744,-500.0,0.00020547,2]
[346183987,1734766267753,-500.0,0.00020547,2]
[346183988,1734766267763,-467.89315084,0.00020547,2]
[346183989,1734766267773,-500.0,0.00020547,2]
[346183990,1734766267783,-500.0,0.00020547,2]
[346183991,1734766267793,-500.0,0.00020547,2]
[346183992,1734766267802,-518.45,0.00020547,2]
[346183993,1734766267812,-500.0,0.00020547,2]
[346183994,1734766267822,-500.0,0.00020547,2]
[346183995,1734766267834,-500.0,0.00020547,2]
[346183996,1734766267844,-500.0,0.00020547,2]
[346183997,1734766267853,-500.0,0.00020547,2]
[346183998,1734766267863,-500.0,0.00020547,2]
[346183999,1734766267873,-774.3,0.00020547,2]
[346184000,1734766267883,-549.0,0.00020547,2]
[346184001,1734766267893,-500.0,0.00020547,2]
[346184002,1734766267903,-500.0,0.00020547,2]
[346184003,1734766267913,-533.28,0.00020547,2]
[346184004,1734766267922,-789.24,0.00020547,2]
[346184005,1734766267931,-500.0,0.00020547,2]
[346184006,1734766267946,-500.0,0.00020547,2]
[346184007,1734766267956,-500.0,0.00020547,2]
[346184008,1734766267967,-500.0,0.00020547,2]
[346184009,1734766267976,-500.0,0.00020547,2]
[346184010,1734766267987,-162.65908062,0.00020547,2]
[346184011,1734766267997,-500.0,0.00020547,2]
[346184012,1734766268006,-500.0,0.00020547,2]
[346184013,1734766268018,-625.61989703,0.00020547,2]
[346184014,1734766268028,-500.0,0.00020547,2]
[346184015,1734766268037,-500.0,0.00020547,2]
[346184016,1734766268047,-500.0,0.00020547,2]
[346184017,1734766268057,-500.0,0.00020547,2]
[346184018,1734766268066,-500.0,0.00020547,2]
[346184019,1734766268077,-500.0,0.00020547,2]
[346184020,1734766268087,-509.46,0.00020547,2]
[346184021,1734766268096,-500.0,0.00020547,2]
[346184022,1734766268106,-500.0,0.00020547,2]
[346184023,1734766268116,-500.0,0.00020547,2]
[346184024,1734766268125,-1540.35,0.00020547,2]
[346184025,1734766268135,-500.0,0.00020547,2]
[346184026,1734766268144,-500.0,0.00020547,2]
[346184027,1734766268154,-500.0,0.00020547,2]
[346184028,1734766268165,-604.38,0.00020547,2]
[346184029,1734766268175,-500.0,0.00020547,2]
[346184030,1734766268184,-650.82,0.00020547,2]
[346184031,1734766268195,-500.0,0.00020547,2]
[346184032,1734766268205,-1457.27,0.00020547,2]
[346184033,1734766268215,-500.0,0.00020547,2]
[346184034,1734766268225,-500.0,0.00020547,2]
[346184035,1734766268235,-500.0,0.00020547,2]
[346184036,1734766268246,-500.0,0.00020547,2]
[346184037,1734766268256,-3278.62,0.00020547,2]
[346184038,1734766268266,-500.0,0.00020547,2]
[346184039,1734766268276,-500.0,0.00020547,2]
[346184040,1734766268286,-743.04,0.00020547,2]
[346184041,1734766268295,-1034.59,0.00020547,2]
[346184042,1734766268306,-500.0,0.00020547,2]
[346184043,1734766268315,-511.9134086,0.00020547,2]
[346184044,1734766268325,-3745.28,0.00020547,2]
[346184045,1734766268335,-607.36,0.00020547,2]
[346184046,1734766268345,-500.0,0.00020547,2]
[346184047,1734766268355,-535.59,0.00020547,2]
[346184048,1734766268365,-500.0,0.00020547,2]
[346184049,1734766268375,-1487.45,0.00020547,2]
[346184050,1734766268384,-500.0,0.00020547,2]
[346184051,1734766268394,-500.0,0.00020547,2]
[346184052,1734766268404,-500.0,0.00020547,2]
[346184053,1734766268414,-500.0,0.00020547,2]
[346184054,1734766268423,-500.0,0.00020547,2]
[346184055,1734766268433,-500.0,0.00020547,2]
[346184056,1734766268443,-500.0,0.00020547,2]
[346184057,1734766268453,-500.0,0.00020547,2]
[346184058,1734766268463,-598.62,0.00020547,2]
[346184059,1734766268475,-604.84,0.00020547,2]
[346184060,1734766268485,-500.0,0.00020547,2]
[346184061,1734766268495,-500.0,0.00020547,2]
[346184062,1734766268505,-500.0,0.00020547,2]
[346184063,1734766268515,-500.0,0.00020547,2]
[346184064,1734766268525,-500.0,0.00020547,2]
[346184065,1734766268537,-500.0,0.00020547,2]
[346184066,1734766268548,-500.0,0.00020547,2]
[346184067,1734766268557,-500.0,0.00020547,2]
[346184068,1734766268568,-500.0,0.00020547,2]
[346184069,1734766268578,-500.0,0.00020547,2]
[346184070,1734766268589,-471.75,0.00020547,2]
[346184071,1734766268599,-500.0,0.00020547,2]
[346184072,1734766268609,-544.98,0.00020547,2]
[346184073,1734766268620,-658.28,0.00020547,2]
[346184074,1734766268631,-500.0,0.00020547,2]
[346184075,1734766268641,-500.0,0.00020547,2]
[346184076,1734766268650,-500.0,0.00020547,2]
[346184077,1734766268661,-538.36,0.00020547,2]
[346184078,1734766268670,-676.52,0.00020547,2]
[346184079,1734766268680,-6570.30051282,0.00020609,2]
[346184080,1734766268690,-500.0,0.00020614,2]
[346184081,1734766268699,-600.0,0.00020614,2]
[346184082,1734766268709,-271.0,0.0002062,2]
[346184083,1734766268722,-210.0,0.0002062,2]
[346184084,1734766268732,-3000.0,0.000208,2]
[346184085,1734766268741,-500.0,0.00020817,2]
[346184086,1734766268751,-500.0,0.00020817,2]
[346184087,1734766268760,-500.0,0.00020817,2]
[346184088,1734766268770,-689.39,0.00020817,2]
[346184089,1734766268780,-538.01,0.00020817,2]
[346184090,1734766268789,-500.0,0.00020817,2]
[346184091,1734766268799,-1397.48,0.00020817,2]
[346184092,1734766268808,-963.78,0.00020817,2]
[346184093,1734766268817,-697.47,0.00020817,2]
[346184094,1734766268827,-792.07,0.00020817,2]
[346184095,1734766268838,-770.71,0.00020817,2]
[346184096,1734766268848,-1343.87,0.00020817,2]
[346184097,1734766268858,-537.37,0.00020817,2]
[346184098,1734766268867,-783.1,0.00020817,2]
[346184099,1734766268877,-508.67,0.00020817,2]
[346184100,1734766268886,-4069.09,0.00020817,2]
[346184101,1734766268897,-546.82,0.00020817,2]
[346184102,1734766268908,-500.0,0.00020817,2]
[346184103,1734766268918,-551.01,0.00020817,2]
[346184104,1734766268929,-557.35,0.00020817,2]
[346184105,1734766268938,-500.0,0.00020817,2]
[346184106,1734766268952,-500.0,0.00020818,2]
[346184107,1734766268961,-500.0,0.00020818,2]
[346184108,1734766268973,-500.0,0.00020818,2]
[346184109,1734766268984,-500.0,0.00020818,2]
[346184110,1734766268994,-156.89953841,0.00020818,2]
[346184111,1734766269004,-500.0,0.00020818,2]
[346184112,1734766269014,-500.0,0.00020818,2]
[346184113,1734766269025,-500.0,0.00020818,2]
[346184114,1734766269035,-500.0,0.00020818,2]
[346184115,1734766269045,-500.0,0.00020818,2]
[346184116,1734766269053,-500.0,0.00020818,2]
[346184117,1734766269063,-537.904182,0.00020818,2]
[346184118,1734766269075,-544.31,0.00020818,2]
[346184119,1734766269084,-500.0,0.00020818,2]
[346184120,1734766269094,-567.96,0.00020818,2]
[346184121,1734766269104,-500.0,0.00020818,2]
[346184122,1734766269113,-516.22,0.00020818,2]
[346184123,1734766269123,-800.025363,0.00020818,2]
[346184124,1734766269132,-500.0,0.00020818,2]
[346184125,1734766269141,-500.0,0.00020818,2]
[346184126,1734766269151,-500.0,0.00020818,2]
[346184127,1734766269161,-500.0,0.00020818,2]
[346184128,1734766269170,-500.0,0.00020818,2]
[346184129,1734766269180,-500.0,0.00020818,2]
[346184130,1734766269190,-500.0,0.00020818,2]
[346184131,1734766269199,-500.0,0.00020818,2]
[346184132,1734766269209,-500.0,0.00020818,2]
[346184133,1734766269220,-500.0,0.00020818,2]
[346184134,1734766269230,-500.0,0.00020818,2]
[346184135,1734766269240,-500.0,0.00020818,2]
[346184136,1734766269250,-500.0,0.00020818,2]
[346184137,1734766269260,-660.08,0.00020818,2]
[346184138,1734766269270,-500.0,0.00020818,2]
[346184139,1734766269280,-162.029188,0.00020818,2]
[346184140,1734766269290,-522.91,0.00020818,2]
[346184141,1734766269300,-500.0,0.00020818,2]
[346184142,1734766269311,-500.0,0.00020818,2]
[346184143,1734766269321,-500.0,0.00020818,2]
[346184144,1734766269331,-500.0,0.00020818,2]
[346184145,1734766269341,-632.96,0.00020818,2]
[346184146,1734766269351,-152.385784,0.00020818,2]
[346184147,1734766269361,-500.0,0.00020818,2]
[346184148,1734766269370,-883.23,0.00020818,2]
[346184149,1734766269381,-500.0,0.00020818,2]
[346184150,1734766269392,-500.0,0.00020818,2]
[346184151,1734766269401,-500.0,0.00020818,2]
[346184152,1734766269411,-584.02,0.00020818,2]
[346184153,1734766269421,-500.0,0.00020818,2]
[346184154,1734766269431,-500.0,0.00020818,2]
[346184155,1734766269440,-793.22,0.00020818,2]
[346184156,1734766269450,-500.0,0.00020818,2]
[346184157,1734766269460,-500.0,0.00020818,2]
[346184158,1734766269471,-500.0,0.00020818,2]
[346184159,1734766269480,-875.32,0.00020818,2]
[346184160,1734766269490,-558.23,0.00020818,2]
[346184161,1734766269500,-500.0,0.00020818,2]
[346184162,1734766269509,-1181.67,0.00020818,2]
[346184163,1734766269519,-500.0,0.00020818,2]
[346184164,1734766269528,-160.131679,0.00020818,2]
[346184165,1734766269537,-591.52,0.00020818,2]
[346184166,1734766269607,-500.0,0.00020818,2]
[346184167,1734766269617,-500.0,0.00020818,2]
[346184168,1734766269626,-709.0,0.00020818,2]
[346184169,1734766269636,-500.0,0.00020818,2]
[346184170,1734766269645,-500.0,0.00020818,2]
[346184171,1734766269655,-519.43,0.00020818,2]
[346184172,1734766269665,-500.0,0.00020818,2]
[346184173,1734766269675,-792.61,0.00020818,2]
[346184174,1734766269684,-659.48,0.00020818,2]
[346184175,1734766269694,-748.6,0.00020818,2]
[346184176,1734766269704,-500.0,0.00020818,2]
[346184177,1734766269714,-790.31,0.00020818,2]
[346184178,1734766269724,-683.95,0.00020818,2]
[346184179,1734766269734,-154.480517,0.00020818,2]
[346184180,1734766269744,-930.92,0.00020818,2]
[346184181,1734766269759,-501.21,0.00020818,2]
[346184182,1734766269769,-500.0,0.00020818,2]
[346184183,1734766269778,-704.07,0.00020818,2]
[346184184,1734766269788,-500.0,0.00020818,2]
[346184185,1734766269797,-500.0,0.00020818,2]
[346184186,1734766269807,-5899.9,0.00020818,2]
[346184187,1734766269816,-4159.09,0.00020818,2]
[346184188,1734766269825,-630.74,0.00020818,2]
[346184189,1734766269836,-1332.42,0.00020818,2]
[346184190,1734766269845,-500.0,0.00020818,2]
[346184191,1734766269854,-1550.03,0.00020818,2]
[346184192,1734766269864,-500.0,0.00020818,2]
[346184193,1734766269873,-500.0,0.00020818,2]
[346184194,1734766269883,-1728.02,0.00020818,2]
[346184195,1734766269892,-500.0,0.00020818,2]
[346184196,1734766269903,-2009.63,0.00020818,2]
[346184197,1734766269912,-500.0,0.00020818,2]
[346184198,1734766269921,-677.89,0.00020818,2]
[346184199,1734766269931,-152.385783,0.00020818,2]
[346184200,1734766269942,-3836.36,0.00020818,2]
[346184201,1734766269953,-500.0,0.00020818,2]
[346184202,1734766269962,-566.32,0.00020818,2]
[346184203,1734766269973,-1192.91,0.00020818,2]
[346184204,1734766269982,-500.0,0.00020818,2]
[346184205,1734766269991,-1376.74,0.00020818,2]
[346184206,1734766270000,-1937.19,0.00020818,2]
[346184207,1734766270010,-500.0,0.00020818,2]
[346184208,1734766270019,-696.37,0.00020818,2]
[346184209,1734766270030,-688.65,0.00020818,2]
[346184210,1734766270039,-826.51,0.00020818,2]
[346184211,1734766270049,-500.0,0.00020818,2]
[346184212,1734766270058,-720.34,0.00020818,2]
[346184213,1734766270067,-215.65113713,0.00020819,2]
[346184214,1734766270077,-500.0,0.00020819,2]
[346184215,1734766270086,-500.0,0.00020819,2]
[346184216,1734766270095,-500.0,0.00020819,2]
[346184217,1734766270105,-500.0,0.00020819,2]
[346184218,1734766270114,-500.0,0.00020819,2]
[346184219,1734766270124,-500.0,0.00020819,2]
[346184220,1734766270133,-500.0,0.00020819,2]